fUST/lending_fUST_20250305
["ID","MTS","AMOUNT","RATE_DAILY","PERIOD"]
[355397865,1741104661435,-315.0,0.00043188,14]
[355397866,1741104661444,-315.0,0.00043188,14]
[355397867,1741104661454,-315.0,0.00043188,14]
[355397868,1741104661463,-338.9483774,0.00043188,14]
[355397869,1741104661472,-509.351094,0.00043188,120]
[355397870,1741104661482,-509.351094,0.00043188,120]
[355397871,1741104661492,-151.0,0.00043188,110]
[355397872,1741104661502,-150.0,0.000432,120]
[355397873,1741104661511,-151.0,0.000432,120]
[355397874,1741104661521,-151.0,0.000432,120]
[355397875,1741104661531,-151.0,0.000432,120]
[355397876,1741104661541,-151.0,0.000432,120]
[355397877,1741104661550,-151.0,0.000432,120]
[355397878,1741104661560,-217.509016,0.000432,120]
[355397879,1741104661570,-217.509016,0.000432,120]
[355397880,1741104661579,-160.349739,0.000432,120]
[355397881,1741104661591,-160.349739,0.000432,120]
[355397882,1741104661601,-387.617517,0.000432,120]
[355397883,1741104661715,-151.0,0.000432,120]
[355397884,1741104661726,-151.0,0.000432,120]
[355397885,1741104661737,-151.0,0.000432,120]
[355397886,1741104661748,-151.0,0.000432,120]
[355397887,1741104661757,-370.209806,0.000432,14]
[355397888,1741104661768,-151.0,0.000432,120]
[355397889,1741104661777,-370.209806,0.000432,14]
[355397890,1741104661787,-151.0,0.000432,120]
[355397891,1741104661797,-151.0,0.000432,120]
[355397892,1741104661807,-151.0,0.000432,120]
[355397893,1741104661818,-240.240108,0.000432,120]
[355397894,1741104661829,-240.240108,0.000432,120]
[355397895,1741104661839,-151.0,0.000432,120]
[355397896,1741104661849,-166.190177,0.000432,120]
[355397897,1741104661858,-150.0,0.000432,120]
[355397898,1741104661870,-227.729722,0.000432,120]
[355397899,1741104661879,-1027.287648,0.000432,120]
[355397900,1741104661889,-227.729722,0.000432,120]
[355397901,1741104661899,-1027.287648,0.000432,120]
[355397902,1741104661909,-150.0,0.000432,2]
[355397903,1741104661918,-151.0,0.000432,120]
[355397904,1741104661931,-189.418104,0.000432,120]
[355397905,1741104661941,-412.633779,0.000432,120]
[355397906,1741104661951,-412.633779,0.000432,120]
[355397907,1741104661962,-151.0,0.000432,120]
[355397908,1741104661972,-151.0,0.000432,120]
[355397909,1741104661982,-151.0,0.000432,120]
[355397910,1741104661992,-202625.22160737,0.000432,120]
[355397911,1741104662001,-1500.0,0.000432,120]
[355397912,1741104662012,-1079.08258474,0.00043278,80]
[355397913,1741104662023,-151.2094033,0.00043286,2]
[355397914,1741104662035,-322.23933771,0.00043286,2]
[355397915,1741104662045,-91212.65169257,0.00043287,120]
[355397916,1741104662056,-41046.38185665,0.00043287,120]
[355397917,1741104662066,-151.0,0.00043287,120]
[355397918,1741104662075,-151.0,0.00043287,120]
[355397919,1741104662085,-151.0,0.00043287,30]
[355397920,1741104662095,-327.304511,0.00043287,2]
[355397921,1741104662106,-151.0,0.00043287,120]
[355397922,1741104662116,-186.200347,0.00043287,120]
[355397923,1741104662126,-186.200347,0.00043287,120]
[355397924,1741104662136,-151.0,0.00043287,120]
[355397925,1741104662146,-1171.51,0.00043287,120]
[355397926,1741104662156,-1056.18,0.00043287,120]
[355397927,1741104662167,-1132.47,0.00043287,120]
[355397928,1741104662180,-500.0,0.00043287,120]
[355397929,1741104662191,-500.0,0.00043287,120]
[355397930,1741104662203,-537.53,0.00043287,120]
[355397931,1741104662213,-500.0,0.00043287,120]
[355397932,1741104662223,-500.0,0.00043287,120]
[355397933,1741104662236,-520.16,0.00043287,120]
[355397934,1741104662247,-1044.86,0.00043287,120]
[355397935,1741104662257,-500.0,0.00043287,120]
[355397936,1741104662267,-500.0,0.00043287,120]
[355397937,1741104662277,-500.0,0.00043287,120]
[355397938,1741104662287,-500.0,0.00043287,120]
[355397939,1741104662297,-734.88,0.00043287,120]
[355397940,1741104662307,-500.0,0.00043287,120]
[355397941,1741104662318,-500.0,0.00043287,120]
[355397942,1741104662328,-4286.73,0.00043287,120]
[355397943,1741104662338,-46585.05,0.00043287,7]
[355397944,1741104662348,-4976.68,0.00043287,120]
[355397945,1741104662358,-759.36,0.00043287,120]
[355397946,1741104662368,-1470.82467796,0.00043287,120]
[355397947,1741104662387,-1067.26532204,0.00043287,120]
[355397948,1741104662397,-500.0,0.00043287,120]
[355397949,1741104662407,-2389.91,0.00043287,120]
[355397950,1741104662418,-1397.6,0.00043287,120]
[355397951,1741104662433,-500.0,0.00043287,120]
[355397952,1741104662443,-537.88,0.00043287,120]
[355397953,1741104662457,-1214.36,0.00043287,120]
[355397954,1741104662468,-2527.3,0.00043287,6]
[355397955,1741104662478,-500.0,0.00043287,120]
[355397956,1741104662489,-676.61,0.00043287,120]
[355397957,1741104662499,-500.0,0.00043287,120]
[355397958,1741104662510,-500.0,0.00043287,120]
[355397959,1741104662520,-600.64,0.00043287,120]
[355397960,1741104662530,-1052.74,0.00043287,120]
[355397961,1741104662540,-1897.92,0.00043287,120]
[355397962,1741104662550,-2155.44,0.00043287,120]
[355397963,1741104662560,-509.351094,0.00043287,120]
[355397964,1741104662570,-1373.15,0.00043287,120]
[355397965,1741104662581,-509.351094,0.00043287,120]
[355397966,1741104662591,-151.0,0.00043287,110]
[355397967,1741104662601,-689.05,0.00043287,120]
[355397968,1741104662611,-1000.0,0.00043287,88]
[355397969,1741104662621,-1150.18,0.00043287,120]
[355397970,1741104662632,-941.29,0.00043287,120]
[355397971,1741104662642,-500.0,0.00043287,120]
[355397972,1741104662657,-751.73,0.00043287,120]
[355397973,1741104662667,-893.1371884,0.00043287,120]
[355397974,1741104662681,-550.0,0.00043288,10]
[355397975,1741104662692,-500.0,0.0004329,30]
[355397976,1741104662704,-500.0,0.0004329,30]
[355397977,1741104662714,-500.0,0.0004329,30]
[355397978,1741104662726,-500.0,0.0004329,30]
[355397979,1741104662737,-500.0,0.0004329,30]
[355397980,1741104662748,-500.0,0.0004329,30]
[355397981,1741104662759,-500.0,0.0004329,30]
[355397982,1741104662769,-500.0,0.0004329,30]
[355397983,1741104662779,-500.0,0.0004329,30]
[355397984,1741104662789,-500.0,0.0004329,30]
[355397985,1741104662799,-500.0,0.0004329,30]
[355397986,1741104662809,-500.0,0.0004329,30]
[355397987,1741104662819,-500.0,0.0004329,30]
[355397988,1741104662830,-500.0,0.0004329,30]
[355397989,1741104662840,-9289.02335156,0.000433,30]
[355397990,1741104662852,-5851.84266022,0.000433,30]
[355397991,1741104662891,-17562.54993439,0.000433,30]
[355397992,1741104662903,-3056.43016576,0.000433,30]
[355397993,1741104662916,-841.04479061,0.000433,30]
[355398010,1741105641864,-300.0,0.00047052,60]
[355398011,1741105641889,-300.0,0.00047052,60]
[355398012,1741105641915,-400.0,0.00047052,60]
[355398013,1741105641941,-249.75,0.00047052,30]
[355398014,1741105641966,-335.25,0.00047052,30]
[355398015,1741105641991,-2000.0,0.00047052,30]
[355398016,1741105642024,-2000.0,0.00047052,30]
[355398017,1741105642053,-860.5,0.00047052,30]
[355398018,1741105642080,-150.0,0.00047052,120]
[355398019,1741105642106,-1500.0,0.00047052,120]
[355398020,1741105642134,-2506.87652023,0.00047052,120]
[355398021,1741105642160,-1072.43171935,0.00047052,120]
[355398022,1741105642187,-1317.16734384,0.00047052,32]
[355398023,1741105642214,-1960.88845428,0.00047052,120]
[355398024,1741105642240,-900.77182064,0.00047052,120]
[355398025,1741105642271,-1830.35061678,0.00047052,30]
[355398026,1741105642298,-161.95922217,0.00047052,120]
[355398027,1741105642325,-1863.67291298,0.00047052,120]
[355398028,1741105642353,-676.9511199,0.00047052,120]
[355398029,1741105642379,-240.82074905,0.00047052,120]
[355398030,1741105642407,-1126.85425206,0.00047052,120]
[355398031,1741105642434,-931.75892693,0.00047052,120]
[355398032,1741105642462,-2000.0,0.00047052,120]
[355398033,1741105642490,-1079.85176115,0.00047052,120]
[355398034,1741105642522,-1908.70295372,0.00047052,30]
[355398035,1741105642548,-934.28614373,0.00047052,120]
[355398036,1741105642575,-845.96544505,0.00047052,120]
[355398037,1741105642602,-1588.25359205,0.00047052,120]
[355398038,1741105642628,-1035.57301123,0.00047052,120]
[355398039,1741105642654,-2536.24067826,0.00047052,120]
[355398040,1741105642678,-990.86748242,0.00047052,120]
[355398041,1741105642703,-1682.46694531,0.00047052,120]
[355398042,1741105642729,-438.88342655,0.00047052,120]
[355398043,1741105642760,-1728.30746467,0.00047052,120]
[355398044,1741105642787,-345.33476459,0.00047052,120]
[355398045,1741105642815,-488.48834991,0.00047052,120]
[355398046,1741105642842,-2009.74376515,0.00047052,120]
[355398047,1741105642869,-1284.18284508,0.00047052,61]
[355398048,1741105642896,-5000.0,0.00047052,120]
[355398049,1741105642924,-5000.0,0.00047052,120]
[355398050,1741105642952,-5000.0,0.00047052,120]
[355398051,1741105642979,-5000.0,0.00047052,120]
[355398052,1741105643012,-5000.0,0.00047052,120]
[355398053,1741105643043,-5000.0,0.00047052,120]
[355398054,1741105643072,-5000.0,0.00047052,120]
[355398055,1741105643100,-5000.0,0.00047052,120]
[355398056,1741105643132,-746635.8921759,0.00047052,120]
[355398057,1741105643162,-2586.68368259,0.00047052,30]
[355398058,1741105643190,-17930.0,0.00047052,30]
[355398059,1741105643221,-1123.1553688,0.00047052,35]
[355398060,1741105643254,-603.7959025,0.00047052,120]
[355398061,1741105643282,-1804.0,0.00047052,120]
[355398062,1741105643309,-6518.28652046,0.00047052,120]
[355398063,1741105643336,-5000.0,0.00047052,120]
[355398064,1741105643363,-500.0,0.00047052,30]
[355398065,1741105643525,-500.0,0.00047052,30]
[355398066,1741105643552,-500.0,0.00047052,30]
[355398067,1741105643579,-500.0,0.00047052,30]
[355398068,1741105643606,-500.0,0.00047052,30]
[355398069,1741105643633,-500.0,0.00047052,30]
[355398070,1741105643660,-500.0,0.00047052,30]
[355398071,1741105643688,-500.0,0.00047052,30]
[355398072,1741105643716,-500.0,0.00047052,30]
[355398073,1741105643744,-500.0,0.00047052,30]
[355398074,1741105643773,-500.0,0.00047052,30]
[355398075,1741105643801,-500.0,0.00047052,30]
[355398076,1741105643831,-500.0,0.00047052,30]
[355398077,1741105643857,-500.0,0.00047052,30]
[355398078,1741105643884,-500.0,0.00047052,30]
[355398079,1741105643912,-500.0,0.00047052,30]
[355398080,1741105643939,-17479.35354162,0.00047052,120]
[355398081,1741105643966,-500.0,0.00047052,30]
[355398082,1741105643993,-500.0,0.00047052,30]
[355398083,1741105644036,-500.0,0.00047052,30]
[355398084,1741105644066,-370.49002358,0.00047052,30]
[355398085,1741105644095,-500.0,0.00047052,30]
[355398086,1741105644125,-6365.19049747,0.00047052,60]
[355398088,1741105650691,-193634.80950253,0.00047052,60]
[355398089,1741105650717,-200000.0,0.00047052,60]
[355398090,1741105650744,-167520.52410395,0.00047052,60]
[355398091,1741105650774,-242.02704487,0.00047052,30]
[355398092,1741105658294,-503.661054,0.00027397,120]
[355398093,1741105658324,-503.661054,0.00031963,120]
[355398094,1741105658351,-2345.9368857,0.00032,120]
[355398095,1741105658381,-201.39,0.000327,31]
[355398096,1741105658411,-201.39,0.000327,31]
[355398097,1741105658440,-201.39,0.000327,31]
[355398098,1741105658468,-201.39,0.000327,31]
[355398099,1741105658496,-201.39,0.000327,31]
[355398100,1741105658527,-201.39,0.000327,31]
[355398101,1741105658554,-201.39,0.000327,31]
[355398102,1741105658582,-201.39,0.000327,31]
[355398103,1741105658611,-201.39,0.000327,31]
[355398104,1741105658640,-201.39,0.000327,31]
[355398105,1741105658669,-201.39,0.000327,31]
[355398106,1741105658697,-201.39,0.000327,31]
[355398107,1741105658725,-503.661054,0.0003653,120]
[355398108,1741105658754,-201.39,0.000367,31]
[355398109,1741105658786,-201.39,0.000367,31]
[355398110,1741105658814,-201.39,0.000367,31]
[355398111,1741105658840,-201.39,0.000367,31]
[355398112,1741105658866,-201.39,0.000367,31]
[355398113,1741105658895,-201.39,0.000367,31]
[355398114,1741105658923,-201.39,0.000367,31]
[355398115,1741105658952,-201.39,0.000367,31]
[355398116,1741105658981,-201.39,0.000367,31]
[355398117,1741105659014,-201.39,0.000367,31]
[355398118,1741105659042,-201.39,0.000367,31]
[355398119,1741105659070,-201.39,0.000367,31]
[355398120,1741105659289,-201.39,0.000367,31]
[355398121,1741105659318,-201.39,0.000367,31]
[355398122,1741105659346,-201.39,0.000367,31]
[355398123,1741105659374,-201.39,0.000367,31]
[355398124,1741105659401,-201.39,0.000367,31]
[355398125,1741105659429,-201.39,0.000367,31]
[355398126,1741105659460,-201.39,0.000367,31]
[355398127,1741105659488,-201.39,0.000367,31]
[355398128,1741105659518,-201.39,0.000367,31]
[355398129,1741105659546,-201.39,0.000367,31]
[355398130,1741105659577,-201.39,0.000367,31]
[355398131,1741105659606,-201.39,0.000367,31]
[355398132,1741105659634,-377.078,0.00038545,52]
[355398133,1741105659672,-9742.11,0.00038872,120]
[355398134,1741105659700,-1000.0,0.00038872,120]
[355398135,1741105659725,-2724.17,0.000389,30]
[355398136,1741105659752,-1000.0,0.000389,120]
[355398137,1741105659780,-1000.0,0.00038927,120]
[355398138,1741105659805,-1000.0,0.00038954,120]
[355398139,1741105659831,-624.72,0.00038982,120]
[355398140,1741105659856,-3000.0,0.00039286,60]
[355398141,1741105659884,-9742.11,0.0003942,120]
[355398142,1741105659910,-999.47805056,0.00039726,120]
[355398143,1741105659937,-3000.0,0.00039834,60]
[355398144,1741105659963,-9742.11,0.00039968,120]
[355398145,1741105659990,-2724.17,0.0004,30]
[355398146,1741105660020,-501.0,0.0004,30]
[355398147,1741105660045,-3000.0,0.00040382,60]
[355398148,1741105660072,-9742.11,0.00040516,120]
[355398149,1741105660098,-525.05,0.000406,30]
[355398150,1741105660126,-201.39,0.000406,31]
[355398151,1741105660153,-201.39,0.000406,31]
[355398152,1741105660180,-201.39,0.000406,31]
[355398153,1741105660208,-201.39,0.000406,31]
[355398154,1741105660236,-201.39,0.000406,31]
[355398155,1741105660270,-201.39,0.000406,31]
[355398156,1741105660302,-201.39,0.000406,31]
[355398157,1741105660332,-201.39,0.000406,31]
[355398158,1741105660365,-201.39,0.000406,31]
[355398159,1741105660395,-201.39,0.000406,31]
[355398160,1741105660424,-201.39,0.000406,31]
[355398161,1741105660452,-201.39,0.000406,31]
[355398162,1741105660480,-201.39,0.000406,31]
[355398163,1741105660507,-201.39,0.000406,31]
[355398164,1741105660541,-201.39,0.000406,31]
[355398165,1741105660568,-201.39,0.000406,31]
[355398166,1741105660596,-201.39,0.000406,31]
[355398167,1741105660624,-201.39,0.000406,31]
[355398168,1741105660652,-201.39,0.000406,31]
[355398169,1741105660680,-201.39,0.000406,31]
[355398170,1741105660710,-201.39,0.000406,31]
[355398171,1741105660739,-201.39,0.000406,31]
[355398172,1741105660769,-201.39,0.000406,31]
[355398173,1741105660799,-201.39,0.000406,31]
[355398174,1741105660823,-241.13423435,0.00040658,120]
[355398175,1741105660848,-3000.0,0.0004093,60]
[355398176,1741105660873,-500.0,0.00041063,31]
[355398177,1741105660899,-584.07019677,0.00041063,31]
[355398178,1741105660925,-500.0,0.00041063,31]
[355398179,1741105660950,-211.13245309,0.00041063,31]
[355398180,1741105660977,-500.0,0.00041063,31]
[355398181,1741105661004,-537.27404091,0.00041063,31]
[355398182,1741105661036,-519.5783574,0.00041063,31]
[355398183,1741105661063,-9742.11,0.00041064,120]
[355398184,1741105661090,-435.05365396,0.00041095,120]
[355398185,1741105661118,-505.34826254,0.00041095,120]
[355398186,1741105661145,-500.0,0.00041095,120]
[355398187,1741105661171,-500.0,0.00041095,120]
[355398188,1741105661197,-501.52168264,0.00041095,120]
[355398189,1741105661223,-504.8242109,0.00041095,120]
[355398190,1741105661249,-501.10022674,0.00041095,120]
[355398191,1741105661276,-500.0,0.00041095,120]
[355398192,1741105661302,-500.0,0.00041095,120]
[355398193,1741105661327,-500.0,0.00041095,120]
[355398194,1741105661352,-500.0,0.00041095,120]
[355398195,1741105661378,-500.0,0.00041095,120]
[355398196,1741105661405,-500.0,0.00041095,120]
[355398197,1741105661432,-500.0,0.00041095,120]
[355398198,1741105661457,-500.0,0.00041095,120]
[355398199,1741105661484,-500.0,0.00041095,120]
[355398200,1741105661513,-500.0,0.00041095,120]
[355398201,1741105661542,-500.0,0.00041095,120]
[355398202,1741105661566,-513.1944816,0.00041095,120]
[355398203,1741105661596,-500.0,0.00041095,120]
[355398204,1741105661623,-500.0,0.00041095,120]
[355398205,1741105661652,-500.0,0.00041095,120]
[355398206,1741105661679,-754.98,0.00041095,120]
[355398207,1741105661705,-500.0,0.00041095,120]
[355398208,1741105661732,-500.0,0.00041095,120]
[355398209,1741105661767,-500.0,0.00041095,120]
[355398210,1741105661795,-502.47414094,0.00041095,120]
[355398211,1741105661824,-500.0,0.00041095,120]
[355398212,1741105661852,-500.0,0.00041095,120]
[355398213,1741105661878,-500.0,0.00041095,120]
[355398214,1741105661907,-500.0,0.00041095,120]
[355398215,1741105661937,-500.0,0.00041095,120]
[355398216,1741105661964,-500.0,0.00041095,120]
[355398217,1741105661991,-399.24624045,0.00041095,120]
[355398218,1741105662026,-500.0,0.00041095,120]
[355398219,1741105662054,-1000.0,0.00041095,120]
[355398220,1741105662081,-500.0,0.00041095,120]
[355398221,1741105662108,-500.0,0.00041095,120]
[355398222,1741105662136,-500.0,0.00041095,120]
[355398223,1741105662163,-500.0,0.00041095,120]
[355398224,1741105662324,-500.0,0.00041095,120]
[355398225,1741105662354,-500.0,0.00041095,120]
[355398226,1741105662381,-500.0,0.00041095,120]
[355398227,1741105662408,-500.0,0.00041095,120]
[355398228,1741105662434,-500.0,0.00041095,120]
[355398229,1741105662460,-500.0,0.00041095,120]
[355398230,1741105662487,-500.0,0.00041095,120]
[355398231,1741105662517,-500.0,0.00041095,120]
[355398232,1741105662546,-500.0,0.00041095,120]
[355398233,1741105662574,-500.0,0.00041095,120]
[355398234,1741105662600,-500.0,0.00041095,120]
[355398235,1741105662628,-500.0,0.00041095,120]
[355398236,1741105662654,-500.0,0.00041095,120]
[355398237,1741105662680,-500.0,0.00041095,120]
[355398238,1741105662706,-500.0,0.00041095,120]
[355398239,1741105662732,-500.0,0.00041095,120]
[355398240,1741105662757,-500.0,0.00041095,120]
[355398241,1741105662787,-500.0,0.00041095,30]
[355398242,1741105662816,-500.0,0.00041095,120]
[355398243,1741105662845,-500.0,0.00041095,120]
[355398244,1741105662872,-500.0,0.00041095,120]
[355398245,1741105662902,-500.0,0.00041095,120]
[355398246,1741105662930,-500.0,0.00041095,120]
[355398247,1741105662956,-508.79848443,0.00041095,120]
[355398248,1741105662982,-500.0,0.00041095,120]
[355398249,1741105663015,-505.90089664,0.00041095,120]
[355398250,1741105663047,-514.07,0.00041095,120]
[355398251,1741105663074,-499.70344828,0.00041095,120]
[355398252,1741105663105,-500.0,0.00041095,120]
[355398253,1741105663136,-507.26773613,0.00041095,120]
[355398254,1741105663168,-500.0,0.00041095,120]
[355398255,1741105663197,-500.0,0.00041095,120]
[355398256,1741105663228,-511.37662572,0.00041095,120]
[355398257,1741105663257,-500.0,0.00041095,120]
[355398258,1741105663293,-500.0,0.00041095,120]
[355398259,1741105663321,-500.0,0.00041095,120]
[355398260,1741105663350,-500.0,0.00041095,120]
[355398261,1741105663378,-500.0,0.00041095,120]
[355398262,1741105663405,-500.0,0.00041095,120]
[355398263,1741105663432,-500.0,0.00041095,120]
[355398264,1741105663459,-500.0,0.00041095,120]
[355398265,1741105663485,-549.0,0.00041095,120]
[355398266,1741105663517,-278.17159363,0.00041095,120]
[355398267,1741105663546,-500.0,0.00041095,120]
[355398268,1741105663573,-500.0,0.00041095,120]
[355398269,1741105663599,-500.0,0.00041095,120]
[355398270,1741105663627,-500.0,0.00041095,120]
[355398271,1741105663654,-1000.0,0.00041095,88]
[355398272,1741105663685,-522.99759142,0.00041095,120]
[355398273,1741105663712,-736.91,0.00041095,120]
[355398274,1741105663740,-500.0,0.00041095,120]
[355398275,1741105663772,-500.0,0.00041095,120]
[355398276,1741105663800,-508.00064218,0.00041095,120]
[355398277,1741105663828,-500.0,0.00041095,120]
[355398278,1741105663855,-500.0,0.00041095,120]
[355398279,1741105663882,-500.0,0.00041095,120]
[355398280,1741105663909,-500.0,0.00041095,120]
[355398281,1741105663938,-500.0,0.00041095,120]
[355398282,1741105663965,-500.0,0.00041095,120]
[355398283,1741105663992,-500.0,0.00041095,120]
[355398284,1741105664023,-500.0,0.00041095,120]
[355398285,1741105664053,-507.11,0.00041095,120]
[355398286,1741105664080,-500.0,0.00041095,120]
[355398287,1741105664109,-507.42921696,0.00041095,120]
[355398288,1741105664136,-500.0,0.00041095,120]
[355398289,1741105664163,-503.59201178,0.00041095,120]
[355398290,1741105664191,-500.0,0.00041095,120]
[355398291,1741105664221,-500.0,0.00041095,120]
[355398292,1741105664248,-500.0,0.00041095,120]
[355398293,1741105664282,-508.60840444,0.00041095,120]
[355398294,1741105664313,-500.0,0.00041095,120]
[355398295,1741105664346,-500.0,0.00041095,120]
[355398296,1741105664377,-500.0,0.00041095,120]
[355398297,1741105664406,-500.0,0.00041095,120]
[355398298,1741105664434,-500.0,0.00041095,120]
[355398299,1741105664462,-500.0,0.00041095,120]
[355398300,1741105664490,-500.0,0.00041095,120]
[355398301,1741105664523,-500.0,0.00041095,120]
[355398302,1741105664556,-503.18261784,0.00041095,120]
[355398303,1741105664582,-500.0,0.00041095,120]
[355398304,1741105664609,-500.0,0.00041095,120]
[355398305,1741105664635,-500.25474083,0.00041095,120]
[355398306,1741105664661,-500.0,0.00041095,120]
[355398307,1741105664687,-500.0,0.00041095,120]
[355398308,1741105664715,-500.0,0.00041095,120]
[355398309,1741105664742,-500.0,0.00041095,120]
[355398310,1741105664774,-500.0,0.00041095,120]
[355398311,1741105664800,-500.0,0.00041095,120]
[355398312,1741105664826,-500.0,0.00041095,120]
[355398313,1741105664855,-500.0,0.00041095,120]
[355398314,1741105664884,-500.0,0.00041095,120]
[355398315,1741105664917,-504.97242745,0.00041095,120]
[355398316,1741105664947,-554.27933542,0.00041095,120]
[355398317,1741105664977,-506.09676834,0.00041095,120]
[355398318,1741105665009,-500.0,0.00041095,120]
[355398319,1741105665051,-500.0,0.00041095,120]
[355398320,1741105665081,-500.0,0.00041095,120]
[355398321,1741105665110,-500.0,0.00041095,120]
[355398322,1741105665138,-500.0,0.00041095,120]
[355398323,1741105665166,-500.0,0.00041095,120]
[355398324,1741105665193,-501.63772058,0.00041095,120]
[355398325,1741105665223,-376.27907184,0.00041095,120]
[355398326,1741105665251,-500.0,0.00041095,120]
[355398327,1741105665283,-500.0,0.00041095,120]
[355398328,1741105665311,-500.0,0.00041095,120]
[355398329,1741105665339,-500.0,0.00041095,120]
[355398330,1741105665497,-500.0,0.00041095,120]
[355398331,1741105665532,-512.54728465,0.00041095,120]
[355398332,1741105665563,-500.0,0.00041095,120]
[355398333,1741105665595,-500.0,0.00041095,120]
[355398334,1741105665624,-500.0,0.00041095,120]
[355398335,1741105665652,-500.0,0.00041095,120]
[355398336,1741105665680,-500.0,0.00041095,120]
[355398337,1741105665707,-500.0,0.00041095,120]
[355398338,1741105665735,-500.0,0.00041095,120]
[355398339,1741105665767,-500.0,0.00041095,120]
[355398340,1741105665795,-502.2875467,0.00041095,120]
[355398341,1741105665823,-502.85372086,0.00041095,120]
[355398342,1741105665850,-500.0,0.00041095,120]
[355398343,1741105665878,-500.0,0.00041095,120]
[355398344,1741105665906,-500.0,0.00041095,120]
[355398345,1741105665934,-500.0,0.00041095,120]
[355398346,1741105665961,-504.14421378,0.00041095,120]
[355398347,1741105665990,-500.0,0.00041095,120]
[355398348,1741105666021,-503.86179257,0.00041095,120]
[355398349,1741105666050,-500.0,0.00041095,120]
[355398350,1741105666079,-3000.0,0.00041095,120]
[355398351,1741105666110,-505.42201626,0.00041095,120]
[355398352,1741105666139,-500.0,0.00041095,120]
[355398353,1741105666167,-500.0,0.00041095,120]
[355398354,1741105666196,-500.0,0.00041095,120]
[355398355,1741105666224,-500.0,0.00041095,120]
[355398356,1741105666252,-500.0,0.00041095,120]
[355398357,1741105666282,-500.0,0.00041095,120]
[355398358,1741105666310,-500.0,0.00041095,120]
[355398359,1741105666338,-500.0,0.00041095,120]
[355398360,1741105666365,-500.0,0.00041095,120]
[355398361,1741105666392,-500.0,0.00041095,120]
[355398362,1741105666420,-500.0,0.00041095,120]
[355398363,1741105666447,-500.0,0.00041095,120]
[355398364,1741105666474,-500.0,0.00041095,120]
[355398365,1741105666502,-500.0,0.00041095,120]
[355398366,1741105666532,-504.8018772,0.00041095,120]
[355398367,1741105666561,-500.0,0.00041095,120]
[355398368,1741105666592,-503.66565808,0.00041095,120]
[355398369,1741105666620,-226.49551735,0.00041095,120]
[355398370,1741105666648,-500.0,0.00041095,120]
[355398371,1741105666677,-500.0,0.00041095,120]
[355398372,1741105666707,-501.97329891,0.00041095,120]
[355398373,1741105666735,-500.0,0.00041095,120]
[355398374,1741105666763,-500.0,0.00041095,120]
[355398375,1741105666797,-500.0,0.00041095,120]
[355398376,1741105666824,-471.00380406,0.00041095,120]
[355398377,1741105666855,-500.0,0.00041095,120]
[355398378,1741105666883,-507.14815072,0.00041095,120]
[355398379,1741105666911,-500.0,0.00041095,120]
[355398380,1741105666940,-500.0,0.00041095,120]
[355398381,1741105666968,-226.82161406,0.00041095,120]